{"text_format":"3","workbook":"xlsx","n_sheets":2,"sheets":["UPUTE ZA RADNU KNJIGU","DNEVNIK OCJENA"],"not_rendered":{"defined_names":5},"read":"whole","date_system":"1900"}

{"sheet":"UPUTE ZA RADNU KNJIGU","index":0,"n_rows":10,"n_cols":2,"rows_kept":10}
[null,"UPUTE"]
[null,"Pomoću radnog lista DNEVNIK OCJENA izračunavajte ocjene tako da svaka zadaća vrijedi zadani broj bodova. "]
[null,"Upute: Obavezno spremite sigurnosne kopije ocjena."]
[null,"1. Unesite naziv obrazovne ustanove, podatke o razredu, imena i preuzima učenika ili studenata i ID-ove učenika ili studenata (neobavezno).   "]
[null,"2. Prilagodite tablicu ocjena svom sustavu ocjenjivanja."]
[null,"3. Unesite nazive zadaća ili testova počevši od ćelije G7 zajedno s postotkom koji svaki od njih nosi (npr. \"Završni\" i \"50 %\"). "]
[null,"4. Unesite rezultate za svakog učenika za svaku zadaću ili test. Stupci \"Rezultat\", \"Ocjena\" i \"GPA\" izračunavaju se automatski, ali možete ih i nadjačati. Zbog načina na koji se izračunavaju ocjene prosječna i završna ocjena ne prikazuju se dok se ne unesu svi rezultati."]
[null,"Pomoću naredbe „Područje ispisa” na izborniku Izgled stranice promijenite područje za ispis."]
[null,"Polja Rezultat, Ocjena i GPA nisu valjana dok god se ne unese 100 % testova i zadaća. "]
[null,"U ćelije od G7 do W8 unesite svaku zadaću ili test te njihov postotak u ukupnoj ocjeni."]

{"sheet":"DNEVNIK OCJENA","index":1,"n_rows":20,"n_cols":23,"rows_kept":20,"merged":[[5,1,5,5],[6,1,6,3],[6,4,6,5],[7,1,8,3],[7,4,7,5],[8,4,8,5],[15,1,15,5],[16,1,16,2],[17,1,17,2],[18,1,18,2],[19,1,19,2]]}
[null,"NAZIV OBRAZOVNE USTANOVE"]
[]
[{"$nulls":6},"Rezultat",{"v":0,"d":"0%"},{"v":0.6,"d":"60%"},{"v":0.63,"d":"63%"},{"v":0.67,"d":"67%"},{"v":0.7,"d":"70%"},{"v":0.73,"d":"73%"},{"v":0.77,"d":"77%"},{"v":0.8,"d":"80%"},{"v":0.83,"d":"83%"},{"v":0.87,"d":"87%"},{"v":0.9,"d":"90%"},{"v":0.93,"d":"93%"},{"v":0.97,"d":"97%"}]
[{"$nulls":6},"Ocjena","1","–2","2","+D","–3","3","+3","–4","4","+4","–5","5","+5"]
[{"$nulls":6},"GPA",0,0.67,1,1.33,1.67,2,2.33,2.67,3,3.33,3.67,4,4]
[null,"Ime i prezime nastavnika"]
[null,"Razred/projekt",null,null,"Naziv zadaće ili testa"]
[null,"Godina/polugodište/tromjesečje",null,null,"Postotak (mora biti 100 %)"]
[{"$nulls":4},{"$f":"\"Ukupan postotak: \"&SUM(G8:W8)*100&\"%\"","v":"Ukupan postotak: 0%"}]
[null,"Ime i prezime učenika","ID učenika","Rezultat","Ocjena","GPA","Stupac6","Stupac7","Stupac8","Stupac9","Stupac10","Stupac11","Stupac12","Stupac13","Stupac14","Stupac15","Stupac16","Stupac17","Stupac18","Stupac19","Stupac20","Stupac21","Stupac22"]
[{"$nulls":3},{"$f":"(IF(SUM(Ocjene[[#This Row],[Stupac6]:[Stupac22]]),ROUND(SUMPRODUCT($G$8:$W$8,Ocjene[[#This Row],[Stupac6]:[Stupac22]]),2),\"\"))","v":""},{"$f":"IF(Ocjene[[#This Row],[Rezultat]]<>\"\",HLOOKUP(Ocjene[[#This Row],[Rezultat]],TablicaOvjena,2),\"\")","v":""},{"$f":"IF(Ocjene[[#This Row],[Rezultat]]<>\"\",HLOOKUP(Ocjene[[#This Row],[Rezultat]],TablicaOvjena,3),\"\")","v":""}]
[{"$nulls":3},{"$f":"(IF(SUM(Ocjene[[#This Row],[Stupac6]:[Stupac22]]),ROUND(SUMPRODUCT($G$8:$W$8,Ocjene[[#This Row],[Stupac6]:[Stupac22]]),2),\"\"))","v":""},{"$f":"IF(Ocjene[[#This Row],[Rezultat]]<>\"\",HLOOKUP(Ocjene[[#This Row],[Rezultat]],TablicaOvjena,2),\"\")","v":""},{"$f":"IF(Ocjene[[#This Row],[Rezultat]]<>\"\",HLOOKUP(Ocjene[[#This Row],[Rezultat]],TablicaOvjena,3),\"\")","v":""}]
[{"$nulls":3},{"$f":"(IF(SUM(Ocjene[[#This Row],[Stupac6]:[Stupac22]]),ROUND(SUMPRODUCT($G$8:$W$8,Ocjene[[#This Row],[Stupac6]:[Stupac22]]),2),\"\"))","v":""},{"$f":"IF(Ocjene[[#This Row],[Rezultat]]<>\"\",HLOOKUP(Ocjene[[#This Row],[Rezultat]],TablicaOvjena,2),\"\")","v":""},{"$f":"IF(Ocjene[[#This Row],[Rezultat]]<>\"\",HLOOKUP(Ocjene[[#This Row],[Rezultat]],TablicaOvjena,3),\"\")","v":""}]
[{"$nulls":3},{"$f":"(IF(SUM(Ocjene[[#This Row],[Stupac6]:[Stupac22]]),ROUND(SUMPRODUCT($G$8:$W$8,Ocjene[[#This Row],[Stupac6]:[Stupac22]]),2),\"\"))","v":""},{"$f":"IF(Ocjene[[#This Row],[Rezultat]]<>\"\",HLOOKUP(Ocjene[[#This Row],[Rezultat]],TablicaOvjena,2),\"\")","v":""},{"$f":"IF(Ocjene[[#This Row],[Rezultat]]<>\"\",HLOOKUP(Ocjene[[#This Row],[Rezultat]],TablicaOvjena,3),\"\")","v":""}]
[{"$nulls":3},{"$f":"(IF(SUM(Ocjene[[#This Row],[Stupac6]:[Stupac22]]),ROUND(SUMPRODUCT($G$8:$W$8,Ocjene[[#This Row],[Stupac6]:[Stupac22]]),2),\"\"))","v":""},{"$f":"IF(Ocjene[[#This Row],[Rezultat]]<>\"\",HLOOKUP(Ocjene[[#This Row],[Rezultat]],TablicaOvjena,2),\"\")","v":""},{"$f":"IF(Ocjene[[#This Row],[Rezultat]]<>\"\",HLOOKUP(Ocjene[[#This Row],[Rezultat]],TablicaOvjena,3),\"\")","v":""}]
[]
[null,"Sažetak razreda",null,"Rezultat","Ocjena","GPA","","","","","","","","","","",""]
[null," Prosječno",null,{"$f":"IFERROR(AVERAGE(Ocjene[[#All],[Rezultat]]),0)","v":{"v":0,"d":"0.0%"}},{"$f":"IFERROR(HLOOKUP(D18,TablicaOvjena,2),\"\")","v":"1"},{"$f":"IFERROR(AVERAGE(Ocjene[[#All],[GPA]]),0)","v":0},"","","","","","","","","","","","","","","","",""]
[null," Najviši rezultat",null,{"$f":"IFERROR(MAX(Ocjene[[#All],[Rezultat]]),0)","v":{"v":0,"d":"0.0%"}},{"$f":"IFERROR(HLOOKUP(D19,TablicaOvjena,2),\"\")","v":"1"},{"$f":"IFERROR(MAX(Ocjene[[#All],[GPA]]),0)","v":0},"","","","","","","","","","","","","","","","",""]
[null," Najniži rezultat",null,{"$f":"IFERROR(MIN(Ocjene[[#All],[Rezultat]]),0)","v":{"v":0,"d":"0.0%"}},{"$f":"IFERROR(HLOOKUP(D20,TablicaOvjena,2),\"\")","v":"1"},{"$f":"IFERROR(MIN(Ocjene[[#All],[GPA]]),0)","v":0},"","","","","","","","","","","","","","","","",""]